[Event "December 12 Early 2023"]
[Site "https://www.chess.com"]
[Date "2023.12.12"]
[Round "8"]
[White "Azali, Tannaz"]
[Black "Silvestre, Christian"]
[Result "0-1"]
[Board "121"]
[TimeControl "180+1"]
[WhiteFideId "12537721"]
[BlackFideId "30956269"]
[WhiteElo "2496"]
[BlackElo "2338"]
[WhiteTeam "IRI"]
[BlackTeam "USA"]
[WhiteClock "0:01:12"]
[BlackClock "0:00:52"]

1. e4 {[%clk 0:03:00]}  c5 {[%clk 0:02:59]} 2. Nc3 {[%clk 0:03:00]}  d6 {[%clk 0:03:00]} 3. d4 {[%clk 0:02:59]}  cxd4 {[%clk 0:02:59]} 4. Qxd4 {[%clk 0:03:00]}  Nc6 {[%clk 0:02:59]} 5. Qd2 {[%clk 0:02:53]}  g6 {[%clk 0:02:58]} 6. b3 {[%clk 0:02:53]}  Bg7 {[%clk 0:02:58]} 7. Bb2 {[%clk 0:02:54]}  Nf6 {[%clk 0:02:59]} 8. O-O-O {[%clk 0:02:54]}  O-O {[%clk 0:02:58]} 9. f4 {[%clk 0:02:52]}  Bg4 {[%clk 0:02:46]} 10. Nge2 {[%clk 0:02:45]}  Rc8 {[%clk 0:02:42]} 11. Kb1 {[%clk 0:02:45]}  Nb4 {[%clk 0:02:36]} 12. a3 {[%clk 0:02:41]}  Nxe4 {[%clk 0:02:22]} 13. Nxe4 {[%clk 0:02:31]}  Rxc2 {[%clk 0:02:22]} 14. Qxc2 {[%clk 0:02:15]}  Nxc2 {[%clk 0:02:20]} 15. Kxc2 {[%clk 0:02:16]}  Bf5 {[%clk 0:02:13]} 16. Ng3 {[%clk 0:02:16]}  Qc8+ {[%clk 0:02:10]} 17. Kb1 {[%clk 0:02:16]}  Qe6 {[%clk 0:01:52]} 18. Nxf5 {[%clk 0:02:12]}  gxf5 {[%clk 0:01:43]} 19. Nd2 {[%clk 0:02:11]}  Bxb2 {[%clk 0:01:38]} 20. Kxb2 {[%clk 0:02:12]}  Qf6+ {[%clk 0:01:35]} 21. Kb1 {[%clk 0:02:10]}  Rc8 {[%clk 0:01:29]} 22. Bc4 {[%clk 0:02:01]}  e6 {[%clk 0:01:28]} 23. g4 {[%clk 0:01:53]}  d5 {[%clk 0:01:27]} 24. Be2 {[%clk 0:01:50]}  Rc3 {[%clk 0:01:18]} 25. Rhg1 {[%clk 0:01:44]}  Kf8 {[%clk 0:01:12]} 26. Rg3 {[%clk 0:01:41]}  Rxg3 {[%clk 0:00:58]} 27. hxg3 {[%clk 0:01:41]}  fxg4 {[%clk 0:00:58]} 28. Rc1 {[%clk 0:01:24]}  Qd4 {[%clk 0:00:56]} 29. Rc2 {[%clk 0:01:23]}  Qg1+ {[%clk 0:00:54]} 30. Kb2 {[%clk 0:01:23]}  Qxg3 {[%clk 0:00:55]} 31. f5 {[%clk 0:01:12]}  Qe5+ {[%clk 0:00:52]} 0-1

[Event "December 12 Early 2023"]
[Site "https://www.chess.com"]
[Date "2023.12.12"]
[Round "8"]
[White "Shukhman, Anna"]
[Black "Skibbe, Willi"]
[Result "1/2-1/2"]
[Board "122"]
[TimeControl "180+1"]
[WhiteFideId "54180058"]
[BlackFideId "4682190"]
[WhiteElo "2482"]
[BlackElo "2301"]
[WhiteTeam "FID"]
[BlackTeam "GER"]
[WhiteClock "0:00:03"]
[BlackClock "0:00:13"]

1. e4 {[%clk 0:03:00]}  e6 {[%clk 0:02:52]} 2. Nf3 {[%clk 0:02:56]}  d5 {[%clk 0:02:51]} 3. e5 {[%clk 0:02:57]}  c5 {[%clk 0:02:51]} 4. b4 {[%clk 0:02:57]}  c4 {[%clk 0:02:51]} 5. c3 {[%clk 0:02:53]}  a5 {[%clk 0:02:48]} 6. b5 {[%clk 0:02:53]}  Qb6 {[%clk 0:02:46]} 7. Na3 {[%clk 0:02:46]}  Bc5 {[%clk 0:02:41]} 8. Qe2 {[%clk 0:02:30]}  Ne7 {[%clk 0:02:34]} 9. Rb1 {[%clk 0:02:27]}  a4 {[%clk 0:02:27]} 10. Nc2 {[%clk 0:02:22]}  a3 {[%clk 0:02:25]} 11. Ncd4 {[%clk 0:02:17]}  Nf5 {[%clk 0:02:20]} 12. d3 {[%clk 0:02:14]}  Nxd4 {[%clk 0:02:16]} 13. cxd4 {[%clk 0:02:14]}  Bxd4 {[%clk 0:02:15]} 14. Nxd4 {[%clk 0:02:14]}  Qxd4 {[%clk 0:02:15]} 15. dxc4 {[%clk 0:02:14]}  dxc4 {[%clk 0:02:12]} 16. Qxc4 {[%clk 0:02:03]}  Qxe5+ {[%clk 0:02:12]} 17. Be2 {[%clk 0:02:02]}  O-O {[%clk 0:02:10]} 18. Bf4 {[%clk 0:02:02]}  Qd5 {[%clk 0:02:08]} 19. O-O {[%clk 0:01:53]}  Qxc4 {[%clk 0:02:00]} 20. Bxc4 {[%clk 0:01:52]}  Nd7 {[%clk 0:02:01]} 21. Bd6 {[%clk 0:01:49]}  Re8 {[%clk 0:02:00]} 22. b6 {[%clk 0:01:49]}  Nf6 {[%clk 0:01:35]} 23. Rb3 {[%clk 0:01:24]}  Bd7 {[%clk 0:01:14]} 24. Rd1 {[%clk 0:01:18]}  Bc6 {[%clk 0:01:12]} 25. Rxa3 {[%clk 0:01:15]}  Rxa3 {[%clk 0:01:10]} 26. Bxa3 {[%clk 0:01:16]}  Bd5 {[%clk 0:01:11]} 27. Bb5 {[%clk 0:00:54]}  Ra8 {[%clk 0:01:09]} 28. Rd3 {[%clk 0:00:50]}  Bxa2 {[%clk 0:01:05]} 29. f3 {[%clk 0:00:48]}  Bd5 {[%clk 0:01:04]} 30. Kf2 {[%clk 0:00:44]}  Ra5 {[%clk 0:01:04]} 31. Rc3 {[%clk 0:00:40]}  h5 {[%clk 0:00:57]} 32. Bd3 {[%clk 0:00:39]}  Bc6 {[%clk 0:00:54]} 33. Bd6 {[%clk 0:00:25]}  Nd7 {[%clk 0:00:47]} 34. Bc7 {[%clk 0:00:25]}  Ra2+ {[%clk 0:00:46]} 35. Kg3 {[%clk 0:00:25]}  Rb2 {[%clk 0:00:45]} 36. Ra3 {[%clk 0:00:10]}  g6 {[%clk 0:00:28]} 37. Ra8+ {[%clk 0:00:10]}  Kg7 {[%clk 0:00:28]} 38. Rd8 {[%clk 0:00:10]}  Kf6 {[%clk 0:00:23]} 39. Be4 {[%clk 0:00:10]}  Nxb6 {[%clk 0:00:20]} 40. Bxc6 {[%clk 0:00:09]}  bxc6 {[%clk 0:00:20]} 41. Rb8 {[%clk 0:00:06]}  Nc4 {[%clk 0:00:20]} 42. Bd8+ {[%clk 0:00:06]}  Kf5 {[%clk 0:00:18]} 43. Rc8 {[%clk 0:00:05]}  Ne5 {[%clk 0:00:15]} 44. f4 {[%clk 0:00:04]}  Rb3+ {[%clk 0:00:14]} 45. Kf2 {[%clk 0:00:05]}  Ng4+ {[%clk 0:00:14]} 46. Ke2 {[%clk 0:00:04]}  Rc3 {[%clk 0:00:14]} 47. Bc7 {[%clk 0:00:04]}  Rc2+ {[%clk 0:00:14]} 48. Kd3 {[%clk 0:00:04]}  Rxg2 {[%clk 0:00:14]} 49. Bd6 {[%clk 0:00:04]}  Rxh2 {[%clk 0:00:14]} 50. Rxc6 {[%clk 0:00:04]}  Rh3+ {[%clk 0:00:14]} 51. Kd4 {[%clk 0:00:04]}  f6 {[%clk 0:00:15]} 52. Rc8 {[%clk 0:00:05]}  e5+ {[%clk 0:00:15]} 53. fxe5 {[%clk 0:00:04]}  fxe5+ {[%clk 0:00:16]} 54. Kd5 {[%clk 0:00:04]}  Rd3+ {[%clk 0:00:16]} 55. Kc6 {[%clk 0:00:05]}  Rc3+ {[%clk 0:00:16]} 56. Bc5 {[%clk 0:00:05]}  Ke4 {[%clk 0:00:17]} 57. Rg8 {[%clk 0:00:04]}  g5 {[%clk 0:00:16]} 58. Rxg5 {[%clk 0:00:04]}  Nf6 {[%clk 0:00:17]} 59. Rg6 {[%clk 0:00:04]}  Kf5 {[%clk 0:00:17]} 60. Rh6 {[%clk 0:00:03]}  Ne4 {[%clk 0:00:17]} 61. Rxh5+ {[%clk 0:00:03]}  Kg4 {[%clk 0:00:17]} 62. Rxe5 {[%clk 0:00:03]}  Kf4 {[%clk 0:00:15]} 63. Rd5 {[%clk 0:00:03]}  Nxc5 {[%clk 0:00:12]} 64. Rxc5 {[%clk 0:00:03]}  Rxc5+ {[%clk 0:00:13]} 65. Kxc5 {[%clk 0:00:03]} 1/2-1/2

[Event "December 12 Early 2023"]
[Site "https://www.chess.com"]
[Date "2023.12.12"]
[Round "8"]
[White "Deveci, Huseyin Said"]
[Black "Kiremitciyan, Ari"]
[Result "0-1"]
[Board "124"]
[TimeControl "180+1"]
[WhiteFideId "26322455"]
[BlackFideId "6373445"]
[WhiteElo "2267"]
[BlackElo "2460"]
[WhiteTeam "TUR"]
[BlackTeam "TUR"]
[WhiteClock "0:00:05"]
[BlackClock "0:00:10"]

1. e4 {[%clk 0:03:00]}  c6 {[%clk 0:02:59]} 2. d4 {[%clk 0:02:59]}  d5 {[%clk 0:03:00]} 3. Nd2 {[%clk 0:02:55]}  dxe4 {[%clk 0:02:59]} 4. Nxe4 {[%clk 0:02:46]}  Bf5 {[%clk 0:02:57]} 5. Ng3 {[%clk 0:02:44]}  Bg6 {[%clk 0:02:57]} 6. h4 {[%clk 0:02:45]}  h6 {[%clk 0:02:58]} 7. h5 {[%clk 0:02:30]}  Bh7 {[%clk 0:02:58]} 8. Nf3 {[%clk 0:02:31]}  Nf6 {[%clk 0:02:56]} 9. Bd3 {[%clk 0:02:13]}  Bxd3 {[%clk 0:02:56]} 10. Qxd3 {[%clk 0:02:14]}  e6 {[%clk 0:02:57]} 11. Bd2 {[%clk 0:02:13]}  c5 {[%clk 0:02:57]} 12. c3 {[%clk 0:01:50]}  Nc6 {[%clk 0:02:56]} 13. O-O-O {[%clk 0:01:47]}  cxd4 {[%clk 0:02:56]} 14. cxd4 {[%clk 0:01:46]}  Be7 {[%clk 0:02:48]} 15. Bc3 {[%clk 0:01:44]}  O-O {[%clk 0:02:45]} 16. Ne4 {[%clk 0:01:30]}  Qd5 {[%clk 0:02:44]} 17. Nxf6+ {[%clk 0:01:27]}  Bxf6 {[%clk 0:02:45]} 18. Rh3 {[%clk 0:01:18]}  b5 {[%clk 0:02:35]} 19. Rg3 {[%clk 0:01:18]}  b4 {[%clk 0:02:30]} 20. Bd2 {[%clk 0:01:09]}  Qxa2 {[%clk 0:02:30]} 21. Bxh6 {[%clk 0:01:07]}  Rac8 {[%clk 0:02:20]} 22. Kd2 {[%clk 0:00:51]}  Qxb2+ {[%clk 0:02:13]} 23. Ke1 {[%clk 0:00:50]}  Kh8 {[%clk 0:01:29]} 24. Bg5 {[%clk 0:00:24]}  Qc3+ {[%clk 0:01:15]} 25. Qxc3 {[%clk 0:00:23]}  bxc3 {[%clk 0:01:16]} 26. Bxf6 {[%clk 0:00:24]}  gxf6 {[%clk 0:01:17]} 27. Rc1 {[%clk 0:00:25]}  Nb4 {[%clk 0:01:15]} 28. Ke2 {[%clk 0:00:08]}  a5 {[%clk 0:01:01]} 29. Ne1 {[%clk 0:00:06]}  Nd5 {[%clk 0:00:57]} 30. Nd3 {[%clk 0:00:06]}  a4 {[%clk 0:00:52]} 31. Ra1 {[%clk 0:00:06]}  Ra8 {[%clk 0:00:50]} 32. Ra3 {[%clk 0:00:05]}  Rfb8 {[%clk 0:00:50]} 33. Nc5 {[%clk 0:00:05]}  Rb2+ {[%clk 0:00:49]} 34. Kd3 {[%clk 0:00:04]}  Rd2+ {[%clk 0:00:47]} 35. Kc4 {[%clk 0:00:03]}  Rxf2 {[%clk 0:00:46]} 36. Rf3 {[%clk 0:00:03]}  Rxf3 {[%clk 0:00:46]} 37. gxf3 {[%clk 0:00:04]}  c2 {[%clk 0:00:41]} 38. Ra1 {[%clk 0:00:03]}  a3 {[%clk 0:00:36]} 39. Kd3 {[%clk 0:00:03]}  Nb4+ {[%clk 0:00:34]} 40. Kc3 {[%clk 0:00:03]}  a2 {[%clk 0:00:30]} 41. Kxb4 {[%clk 0:00:03]}  Rb8+ {[%clk 0:00:24]} 42. Kc3 {[%clk 0:00:03]}  Rb1 {[%clk 0:00:22]} 43. Kxc2 {[%clk 0:00:04]}  Rxa1 {[%clk 0:00:22]} 44. Kb2 {[%clk 0:00:04]}  Rf1 {[%clk 0:00:19]} 45. Kxa2 {[%clk 0:00:05]}  Rxf3 {[%clk 0:00:19]} 46. Kb2 {[%clk 0:00:05]}  Rh3 {[%clk 0:00:19]} 47. Nd7 {[%clk 0:00:06]}  Kg7 {[%clk 0:00:18]} 48. h6+ {[%clk 0:00:05]}  Rxh6 {[%clk 0:00:18]} 49. Kc3 {[%clk 0:00:06]}  Rh3+ {[%clk 0:00:18]} 50. Kc4 {[%clk 0:00:07]}  f5 {[%clk 0:00:17]} 51. d5 {[%clk 0:00:07]}  Rh4+ {[%clk 0:00:16]} 52. Kc5 {[%clk 0:00:07]}  exd5 {[%clk 0:00:13]} 53. Kxd5 {[%clk 0:00:07]}  Re4 {[%clk 0:00:13]} 54. Nc5 {[%clk 0:00:07]}  Re8 {[%clk 0:00:11]} 55. Nd3 {[%clk 0:00:05]}  Kf6 {[%clk 0:00:10]} 0-1

[Event "December 12 Early 2023"]
[Site "https://www.chess.com"]
[Date "2023.12.12"]
[Round "8"]
[White "Turzo, Attila"]
[Black "Luukkonen, Tommi"]
[Result "1-0"]
[Board "130"]
[TimeControl "180+1"]
[WhiteFideId "704954"]
[BlackFideId "501808"]
[WhiteElo "2471"]
[BlackElo "2330"]
[WhiteTeam "HUN"]
[BlackTeam "FIN"]
[WhiteClock "0:00:09"]
[BlackClock "0:00:00"]

1. d4 {[%clk 0:03:00]}  Nf6 {[%clk 0:02:55]} 2. Bf4 {[%clk 0:02:42]}  g6 {[%clk 0:02:51]} 3. Nf3 {[%clk 0:02:35]}  Bg7 {[%clk 0:02:50]} 4. c3 {[%clk 0:02:35]}  d6 {[%clk 0:02:48]} 5. Nbd2 {[%clk 0:02:35]}  O-O {[%clk 0:02:47]} 6. e4 {[%clk 0:02:35]}  Nh5 {[%clk 0:02:42]} 7. Be3 {[%clk 0:02:34]}  Nc6 {[%clk 0:02:41]} 8. Be2 {[%clk 0:02:24]}  e5 {[%clk 0:02:40]} 9. dxe5 {[%clk 0:02:22]}  dxe5 {[%clk 0:02:40]} 10. O-O {[%clk 0:02:20]}  Nf4 {[%clk 0:02:39]} 11. Re1 {[%clk 0:02:16]}  Qe7 {[%clk 0:02:38]} 12. Bf1 {[%clk 0:02:16]}  Rd8 {[%clk 0:02:38]} 13. Qc2 {[%clk 0:02:16]}  a5 {[%clk 0:02:36]} 14. a4 {[%clk 0:02:13]}  Be6 {[%clk 0:02:35]} 15. h3 {[%clk 0:02:00]}  Qf6 {[%clk 0:02:34]} 16. Kh2 {[%clk 0:01:59]}  h5 {[%clk 0:02:33]} 17. g3 {[%clk 0:01:59]}  g5 {[%clk 0:02:12]} 18. gxf4 {[%clk 0:01:58]}  exf4 {[%clk 0:02:12]} 19. Bd4 {[%clk 0:01:57]}  Qh6 {[%clk 0:02:10]} 20. Bxg7 {[%clk 0:01:55]}  Kxg7 {[%clk 0:02:10]} 21. h4 {[%clk 0:01:36]}  f6 {[%clk 0:02:09]} 22. e5 {[%clk 0:01:35]}  g4 {[%clk 0:02:01]} 23. exf6+ {[%clk 0:01:33]}  Kxf6 {[%clk 0:02:01]} 24. Ng5 {[%clk 0:01:22]}  Bf5 {[%clk 0:01:38]} 25. Qb3 {[%clk 0:01:22]}  g3+ {[%clk 0:01:22]} 26. Kh1 {[%clk 0:01:13]}  Qf8 {[%clk 0:01:12]} 27. Nde4+ {[%clk 0:00:54]}  Kg7 {[%clk 0:01:12]} 28. fxg3 {[%clk 0:00:53]}  f3 {[%clk 0:01:00]} 29. Nc5 {[%clk 0:00:46]}  Kh8 {[%clk 0:00:33]} 30. Nce6 {[%clk 0:00:37]}  Qg8 {[%clk 0:00:31]} 31. Bh3 {[%clk 0:00:28]}  Bxh3 {[%clk 0:00:28]} 32. Nxh3 {[%clk 0:00:28]}  Qxg3 {[%clk 0:00:27]} 33. Nef4 {[%clk 0:00:25]}  Rd2 {[%clk 0:00:23]} 34. Ng6+ {[%clk 0:00:18]}  Qxg6 {[%clk 0:00:23]} 35. Ng5 {[%clk 0:00:16]}  Qf5 {[%clk 0:00:20]} 36. Qe6 {[%clk 0:00:11]}  Qf4 {[%clk 0:00:16]} 37. Qh6+ {[%clk 0:00:09]}  Kg8 {[%clk 0:00:00]} 38. Qg6+ {[%clk 0:00:09]} 1-0

[Event "December 12 Early 2023"]
[Site "https://www.chess.com"]
[Date "2023.12.12"]
[Round "8"]
[White "Liu, Casper"]
[Black "Jakubowska, Anna"]
[Result "0-1"]
[Board "131"]
[TimeControl "180+1"]
[WhiteFideId "1454153"]
[BlackFideId "1121952"]
[WhiteElo "2447"]
[BlackElo "2342"]
[WhiteTeam "DEN"]
[BlackTeam "POL"]
[WhiteClock "0:00:15"]
[BlackClock "0:00:42"]

1. f4 {[%clk 0:03:00]}  d5 {[%clk 0:02:59]} 2. Nf3 {[%clk 0:03:01]}  Nf6 {[%clk 0:02:59]} 3. e3 {[%clk 0:03:02]}  Bg4 {[%clk 0:02:54]} 4. g3 {[%clk 0:03:03]}  e6 {[%clk 0:02:54]} 5. Bg2 {[%clk 0:03:03]}  h5 {[%clk 0:02:50]} 6. h3 {[%clk 0:03:02]}  Bxf3 {[%clk 0:02:49]} 7. Qxf3 {[%clk 0:03:03]}  Bd6 {[%clk 0:02:42]} 8. b3 {[%clk 0:03:01]}  Qe7 {[%clk 0:02:41]} 9. Bb2 {[%clk 0:03:01]}  Nbd7 {[%clk 0:02:41]} 10. d3 {[%clk 0:03:00]}  e5 {[%clk 0:02:41]} 11. fxe5 {[%clk 0:02:52]}  Nxe5 {[%clk 0:02:41]} 12. Qe2 {[%clk 0:02:50]}  Ng6 {[%clk 0:02:39]} 13. Nd2 {[%clk 0:02:48]}  Bxg3+ {[%clk 0:02:38]} 14. Kd1 {[%clk 0:02:47]}  O-O-O {[%clk 0:02:32]} 15. Rf1 {[%clk 0:02:45]}  Be5 {[%clk 0:02:26]} 16. d4 {[%clk 0:02:38]}  Bd6 {[%clk 0:02:25]} 17. c4 {[%clk 0:02:36]}  Ba3 {[%clk 0:02:23]} 18. Bxa3 {[%clk 0:02:26]}  Qxa3 {[%clk 0:02:23]} 19. Kc2 {[%clk 0:02:23]}  Rhe8 {[%clk 0:02:01]} 20. c5 {[%clk 0:02:18]}  Ne7 {[%clk 0:01:49]} 21. Nb1 {[%clk 0:02:06]}  Qa5 {[%clk 0:01:47]} 22. a3 {[%clk 0:01:44]}  Nc6 {[%clk 0:01:45]} 23. Qf2 {[%clk 0:01:37]}  Nb4+ {[%clk 0:01:35]} 24. Kc3 {[%clk 0:01:20]}  Ne4+ {[%clk 0:01:21]} 25. Bxe4 {[%clk 0:01:20]}  dxe4 {[%clk 0:01:18]} 26. Qf5+ {[%clk 0:01:06]}  Kb8 {[%clk 0:01:16]} 27. Kb2 {[%clk 0:00:56]}  Nd5 {[%clk 0:01:07]} 28. Qxf7 {[%clk 0:00:32]}  Nxe3 {[%clk 0:01:05]} 29. Rf2 {[%clk 0:00:28]}  Nd1+ {[%clk 0:01:05]} 30. Kc2 {[%clk 0:00:25]}  Nxf2 {[%clk 0:01:03]} 31. Qxf2 {[%clk 0:00:25]}  e3 {[%clk 0:01:04]} 32. Qe2 {[%clk 0:00:25]}  Rxd4 {[%clk 0:00:58]} 33. b4 {[%clk 0:00:21]}  Qa4+ {[%clk 0:00:54]} 34. Kc1 {[%clk 0:00:20]}  Qb3 {[%clk 0:00:47]} 35. Ra2 {[%clk 0:00:17]}  Rc4+ {[%clk 0:00:43]} 36. Rc2 {[%clk 0:00:16]}  Rxc2+ {[%clk 0:00:42]} 37. Qxc2 {[%clk 0:00:16]}  Qxc2+ {[%clk 0:00:42]} 38. Kxc2 {[%clk 0:00:15]}  e2 {[%clk 0:00:42]} 0-1

[Event "December 12 Early 2023"]
[Site "https://www.chess.com"]
[Date "2023.12.12"]
[Round "8"]
[White "Vincenti, Leonardo"]
[Black "Aalto, Patrik"]
[Result "0-1"]
[Board "132"]
[TimeControl "180+1"]
[WhiteFideId "28550820"]
[BlackFideId "510726"]
[WhiteElo "2237"]
[BlackElo "2443"]
[WhiteTeam "ITA"]
[BlackTeam "FIN"]
[WhiteClock "0:00:49"]
[BlackClock "0:01:44"]

1. e4 {[%clk 0:03:00]}  c5 {[%clk 0:03:00]} 2. Nf3 {[%clk 0:02:59]}  Nc6 {[%clk 0:03:00]} 3. d4 {[%clk 0:02:55]}  cxd4 {[%clk 0:03:00]} 4. Nxd4 {[%clk 0:02:55]}  Nf6 {[%clk 0:03:01]} 5. Nc3 {[%clk 0:02:54]}  d6 {[%clk 0:03:01]} 6. Bb5 {[%clk 0:02:51]}  Bd7 {[%clk 0:02:57]} 7. O-O {[%clk 0:02:48]}  g6 {[%clk 0:02:53]} 8. Be3 {[%clk 0:02:43]}  Bg7 {[%clk 0:02:53]} 9. f3 {[%clk 0:02:43]}  O-O {[%clk 0:02:53]} 10. Qd2 {[%clk 0:02:42]}  a6 {[%clk 0:02:50]} 11. Bxc6 {[%clk 0:02:33]}  bxc6 {[%clk 0:02:50]} 12. Rad1 {[%clk 0:02:29]}  c5 {[%clk 0:02:50]} 13. Nb3 {[%clk 0:02:29]}  Qc7 {[%clk 0:02:47]} 14. Nd5 {[%clk 0:02:24]}  Nxd5 {[%clk 0:02:45]} 15. Qxd5 {[%clk 0:02:24]}  Bxb2 {[%clk 0:02:39]} 16. Nxc5 {[%clk 0:02:22]}  Bc6 {[%clk 0:02:30]} 17. Qb3 {[%clk 0:02:20]}  Rfb8 {[%clk 0:02:28]} 18. Nxa6 {[%clk 0:01:55]}  Rxa6 {[%clk 0:02:27]} 19. Qc4 {[%clk 0:01:55]}  Ra4 {[%clk 0:02:22]} 20. Qd3 {[%clk 0:01:53]}  Bb5 {[%clk 0:02:21]} 21. Qb3 {[%clk 0:01:49]}  Bg7 {[%clk 0:02:13]} 22. Rb1 {[%clk 0:01:39]}  Raa8 {[%clk 0:02:09]} 23. Rfc1 {[%clk 0:01:34]}  Bc4 {[%clk 0:02:07]} 24. Bb6 {[%clk 0:01:31]}  Bd4+ {[%clk 0:02:00]} 25. Bxd4 {[%clk 0:01:27]}  Bxb3 {[%clk 0:02:00]} 26. cxb3 {[%clk 0:01:26]}  Qd7 {[%clk 0:02:00]} 27. a4 {[%clk 0:01:25]}  Rc8 {[%clk 0:01:58]} 28. a5 {[%clk 0:01:23]}  Rxc1+ {[%clk 0:01:57]} 29. Rxc1 {[%clk 0:01:23]}  Rxa5 {[%clk 0:01:57]} 30. b4 {[%clk 0:01:21]}  Rb5 {[%clk 0:01:56]} 31. Bc3 {[%clk 0:01:22]}  f6 {[%clk 0:01:55]} 32. Ra1 {[%clk 0:01:21]}  Qb7 {[%clk 0:01:54]} 33. Kf2 {[%clk 0:01:18]}  Rxb4 {[%clk 0:01:53]} 34. Bxb4 {[%clk 0:01:18]}  Qxb4 {[%clk 0:01:54]} 35. Ra8+ {[%clk 0:01:18]}  Kg7 {[%clk 0:01:54]} 36. Ra2 {[%clk 0:01:19]}  Qd4+ {[%clk 0:01:53]} 37. Kg3 {[%clk 0:01:18]}  Qe3 {[%clk 0:01:49]} 38. h3 {[%clk 0:01:12]}  h5 {[%clk 0:01:49]} 39. Kh2 {[%clk 0:01:10]}  h4 {[%clk 0:01:50]} 40. Rc2 {[%clk 0:01:09]}  g5 {[%clk 0:01:47]} 41. Kh1 {[%clk 0:01:04]}  Kf7 {[%clk 0:01:47]} 42. Kh2 {[%clk 0:01:04]}  Ke6 {[%clk 0:01:47]} 43. Kh1 {[%clk 0:01:01]}  Ke5 {[%clk 0:01:47]} 44. Kh2 {[%clk 0:01:01]}  e6 {[%clk 0:01:45]} 45. Ra2 {[%clk 0:00:58]}  d5 {[%clk 0:01:45]} 46. exd5 {[%clk 0:00:57]}  exd5 {[%clk 0:01:45]} 47. g3 {[%clk 0:00:57]}  Qxf3 {[%clk 0:01:44]} 48. gxh4 {[%clk 0:00:57]}  gxh4 {[%clk 0:01:45]} 49. Rd2 {[%clk 0:00:50]}  Qf4+ {[%clk 0:01:43]} 50. Kh1 {[%clk 0:00:50]}  Qxd2 {[%clk 0:01:43]} 51. Kg1 {[%clk 0:00:50]}  Kf4 {[%clk 0:01:43]} 52. Kh1 {[%clk 0:00:49]}  Kg3 {[%clk 0:01:44]} 0-1

[Event "December 12 Early 2023"]
[Site "https://www.chess.com"]
[Date "2023.12.12"]
[Round "8"]
[White "Pertinez Soria, Juan Luis"]
[Black "Skaric, Djuro"]
[Result "1-0"]
[Board "134"]
[TimeControl "180+1"]
[WhiteFideId "2225620"]
[BlackFideId "934569"]
[WhiteElo "2213"]
[BlackElo "2403"]
[WhiteTeam "ESP"]
[BlackTeam "SRB"]
[WhiteClock "0:00:44"]
[BlackClock "0:00:16"]

1. e4 {[%clk 0:03:00]}  d6 {[%clk 0:03:00]} 2. d4 {[%clk 0:02:59]}  g6 {[%clk 0:02:57]} 3. Nc3 {[%clk 0:02:56]}  Bg7 {[%clk 0:02:58]} 4. Be3 {[%clk 0:02:56]}  Nf6 {[%clk 0:02:58]} 5. f3 {[%clk 0:02:55]}  O-O {[%clk 0:02:58]} 6. Qd2 {[%clk 0:02:56]}  Nc6 {[%clk 0:02:58]} 7. O-O-O {[%clk 0:02:56]}  e5 {[%clk 0:02:56]} 8. Nge2 {[%clk 0:02:54]}  Nh5 {[%clk 0:02:54]} 9. d5 {[%clk 0:02:51]}  Ne7 {[%clk 0:02:53]} 10. g4 {[%clk 0:02:45]}  Nf4 {[%clk 0:02:54]} 11. Nxf4 {[%clk 0:02:44]}  exf4 {[%clk 0:02:54]} 12. Bxf4 {[%clk 0:02:43]}  f5 {[%clk 0:02:55]} 13. gxf5 {[%clk 0:02:32]}  gxf5 {[%clk 0:02:56]} 14. Rg1 {[%clk 0:02:30]}  Ng6 {[%clk 0:02:56]} 15. Bg5 {[%clk 0:02:28]}  Qe8 {[%clk 0:02:55]} 16. Bd3 {[%clk 0:02:26]}  Kh8 {[%clk 0:02:44]} 17. h4 {[%clk 0:02:21]}  f4 {[%clk 0:02:40]} 18. h5 {[%clk 0:02:20]}  Ne5 {[%clk 0:02:40]} 19. Rdf1 {[%clk 0:02:11]}  Qxh5 {[%clk 0:02:17]} 20. Be2 {[%clk 0:01:32]}  Ng6 {[%clk 0:02:10]} 21. Bd1 {[%clk 0:01:31]}  Bh3 {[%clk 0:02:08]} 22. Rf2 {[%clk 0:01:21]}  h6 {[%clk 0:02:02]} 23. Rh2 {[%clk 0:01:21]}  hxg5 {[%clk 0:02:00]} 24. Rgh1 {[%clk 0:01:18]}  Nh4 {[%clk 0:01:59]} 25. Rxh3 {[%clk 0:01:18]}  Be5 {[%clk 0:01:54]} 26. Ne2 {[%clk 0:01:14]}  Kg7 {[%clk 0:01:52]} 27. Nd4 {[%clk 0:01:14]}  Kf6 {[%clk 0:01:45]} 28. Nf5 {[%clk 0:01:11]}  Rh8 {[%clk 0:01:39]} 29. Qb4 {[%clk 0:01:04]}  Qf7 {[%clk 0:01:27]} 30. Qe1 {[%clk 0:00:55]}  Kg6 {[%clk 0:00:40]} 31. Nxh4+ {[%clk 0:00:47]}  gxh4 {[%clk 0:00:41]} 32. Rxh4 {[%clk 0:00:48]}  Rxh4 {[%clk 0:00:40]} 33. Qxh4 {[%clk 0:00:47]}  Bf6 {[%clk 0:00:16]} 34. Rg1+ {[%clk 0:00:44]} 1-0